Cogmind - Beta 12 @@@ ROGUE MODE // 2023.03.09 @ 20:38:10 Player: heavymetalmidis Result: Destroyed by Y-45 Defender with Beam Rifle Performance ------------- Evolutions (1) 500 Regions Visited (2) 400 Robots Destroyed (41) 205 Value Destroyed (849) 849 Prototype IDs (3) 60 Alien Tech Used (0) 0 Bonus (0) 0 TOTAL SCORE: 2014 Bonus ------- None Cogmind --------- Core Integrity 0/400 Matter 273/300 Energy 97/100 System Corruption 0% Temperature Cool (9) Movement Core (200) Ox3 Location -9/Materials Parts ------- > --- POWER (1) -------- (None) > --- PROPULSION (3) --- (None) > --- UTILITY (3) ------ Medium Storage Unit ECM Suite > --- WEAPON (2) ------- (None) > --- INVENTORY (10) --- Medium Storage Unit High-capacity Matter Pod (15) Weight Redist. System Terrain Scanner Terrain Scan Processor Transport Network Coupler ECM Suite Peak State ------------ > --- POWER ------------ Light Nuclear Core > --- PROPULSION ------- Hover Unit Hover Unit Improved Hover Unit > --- UTILITY ---------- Huge Storage Unit Visual Processing Unit ECM Suite > --- WEAPON ----------- Light Assault Rifle Improved Light Cannon > --- INVENTORY -------- Light Ion Engine Light Nuclear Core Light Nuclear Core Wheel Hover Unit Hover Unit Improved Heat Sink Cooling System Small Storage Unit Small Storage Unit Medium Storage Unit High-capacity Battery High-capacity Matter Pod Weight Redist. System Terrain Scanner Improved Targeting Computer ECM Suite Utility Shielding High-powered Tractor Beam Improved Light Cannon Improved Light Cannon Grenade Launcher [Rating: 17] Favorites ----------- Power Ion Engine Engine Ion Engine Power Core Light Nuclear Core Propulsion Wheel Leg Aluminum Leg Wheel Wheel Hover Unit Hover Unit Utility ECM Suite Device ECM Suite Storage Huge Storage Unit Processor Visual Processing Unit Weapon Assault Rifle Ballistic Gun Assault Rifle Ballistic Cannon Light Cannon Launcher Grenade Launcher Build | -11 -10 -9 ------- Run | Jun Mat Mat Slots Evolved 2 | . . 2 Power . | . . . Propulsion 1 | . . 1 Utility 1 | . . 1 Weapon . | . . . Parts Attached 78 | 6 23 49 Power 11 | 1 2 8 Engine 6 | 1 2 3 Core 5 | . . 5 Reactor . | . . . Propulsion 25 | 2 8 15 Treads . | . . . Leg 2 | 2 . . Wheel 11 | . 8 3 Hover 12 | . . 12 Flight . | . . . Utility 19 | 1 5 13 Device 10 | . 2 8 Storage 8 | 1 3 4 Processor 1 | . . 1 Hackware . | . . . Protection . | . . . Artifact . | . . . Weapon 23 | 2 8 13 Energy Gun . | . . . Energy Cannon . | . . . Ballistic Gun 12 | 2 4 6 Ballistic Cannon 8 | . 2 6 Launcher 3 | . 2 1 Special Weapon . | . . . Impact Weapon . | . . . Slashing Weapon . | . . . Piercing Weapon . | . . . Special Melee Weapon . | . . . Unidentified Prototypes . | . . . Parts Lost 17 | . 2 15 Power 3 | . . 3 Propulsion 9 | . . 9 Utility 1 | . . 1 Weapon 4 | . 2 2 Highest Loss Streak 8 | . 2 8 To Critical Strikes . | . . . Average Slot Usage (%) 91 | . 98 85 Engine 8 | . 14 3 Core 3 | . . 7 Leg 1 | . 2 . Wheel 15 | . 25 7 Hover 10 | . . 20 Device 16 | . 13 19 Storage 12 | . 14 11 Ballistic Gun 16 | . 24 8 Ballistic Cannon 5 | . 2 7 Naked Turns . | . . . Heaviest Build 94 | 13 93 94 Greatest Support 32 | 20 32 30 Greatest Overweight (x) 9 | 2 5 9 Average Overweight (x) 1 | . 2 1 Largest Inventory Capacity 25 | 8 25 25 Average Capacity 18 | 7 21 15 Most Carried 25 | 6 25 25 Average Carried 16 | 3 19 15 Final Capacity 25 | 8 25 10 Final Carried 25 | 6 25 7 Class Distribution -------------------- 56% | Mutant 43% | Scavenger-Mutant Dominant Class ---------------- Mutant | -10/Materials Scavenger-Mutant | -9/Materials Resources | -11 -10 -9 ----------- Run | Jun Mat Mat Matter Collected 1623 | 188 619 816 Remotely 201 | . . 201 Salvage Created 1262 | . 641 621 Parts 90 | . 41 49 Haulers Intercepted 6 | . 2 4 Recyclers Shooed 2 | . 2 . Parts Field Recycled . | . . . Retrieved Matter . | . . . Parts Self-Destructed . | . . . Prevented . | . . . Kills | -11 -10 -9 ------- Run | Jun Mat Mat Combat Hostiles Destroyed 25 | . 9 16 Guns 15 | . 8 7 Cannons 10 | . 1 9 Classes Destroyed 8 | . 6 2 Worker 2 | . 2 . Hauler 6 | . 2 4 Recycler 1 | . 1 . Watcher 7 | . 3 4 Swarmer 10 | . 3 7 Grunt 9 | . 6 3 Duelist 1 | . . 1 Sentry 5 | . . 5 Best Kill Streak 5 | . 5 3 Combat Bots Only 3 | . 3 3 Max Kills in Single Turn 2 | . 2 1 Gunslinging . | . . . Exploded . | . . . Melee . | . . . Uniques/NPCs Destroyed . | . . . Combat | -11 -10 -9 -------- Run | Jun Mat Mat Damage Taken 2094 | . 440 1654 Core 424 | . 16 408 Absorbed by Shields . | . . . Regen/Repaired (Parts) 159 | . 15 144 Core Remaining (%) 96 | 100 93 . Volleys Fired 176 | . 51 125 Largest 2 | . 2 2 Hottest 70 | . 70 70 Shots Fired 266 | . 100 166 Gun 199 | . 94 105 Cannon 67 | . 6 61 Launcher . | . . . Special . | . . . Kinetic 266 | . 100 166 Thermal . | . . . Explosive . | . . . Electromagnetic . | . . . Robot Hit Streak 27 | . 9 27 Robot Miss Streak 5 | . 5 5 Penetration Max . | . . . Secondary Targets . | . . . Shots Hit Robots 181 | . 60 121 Core Hits 71 | . 26 45 Critical Kills . | . . . Critical Parts Destroyed 2 | . 1 1 Critical Strikes 3 | . 1 2 Destroy 2 | . 1 1 Blast 1 | . . 1 Melee Attacks . | . . . Impact . | . . . Slashing . | . . . Piercing . | . . . Sneak Attacks . | . . . Combat Hostiles . | . . . Follow-up Attacks . | . . . Damage Inflicted 2236 | . 790 1446 Guns 1370 | . 733 637 Cannons 809 | . 57 752 Explosions . | . . . Melee . | . . . Ramming 57 | . . 57 Kinetic 2179 | . 790 1389 Thermal . | . . . Explosive . | . . . Electromagnetic . | . . . Impact . | . . . Slashing . | . . . Piercing . | . . . Highest Corruption 2 | . 2 . Average Corruption 2 | . 2 . Corruption Purged . | . . . Corruption Blocked . | . . . Effects 9 | . 9 . Message Errors 1 | . 1 . Matter Fused 2 | . 2 . Heat Flow Errors 2 | . 2 . Energy Discharges 1 | . 1 . Parts Fused 1 | . 1 . Data Loss (minor) 1 | . 1 . Misfires 1 | . 1 . Overload Shots . | . . . Overflow Damage 11 | . . 11 Projectiles 9 | . . 9 Explosions . | . . . Melee 2 | . . 2 Knockbacks 10 | . 1 9 Impact . | . . . Kinetic 10 | . 1 9 Secondary . | . . . Self-Inflicted Damage 26 | . . 26 Shots . | . . . Rammed 6 | . . 6 Targets Rammed 6 | . . 6 Kicked . | . . . Crushed . | . . . Highest Temperature 116 | . 116 64 Average Temperature 14 | . 25 11 Received Heat Transfer 723 | . 231 492 Siege Activations . | . . . Robots Corrupted . | . . . Combat Hostiles . | . . . Parts Fried . | . . . Impact Corruptions 1 | . . 1 Robots Melted . | . . . Combat Hostiles . | . . . Parts Melted . | . . . Heat Transferred . | . . . Parts Sabotaged . | . . . Parts Stolen . | . . . Parts Stripped . | . . . Power Chain Reactions . | . . . Missiles Intercepted . | . . . Alert | -11 -10 -9 ------- Run | Jun Mat Mat Peak Influence 304 | . 224 304 Initial 19 | . . 19 Average 106 | . 75 138 Maximum Alert Level 1 | . 1 1 Low Security (%) 76 | 100 91 63 Level 1 23 | . 8 36 Level 2 . | . . . Level 3 . | . . . Level 4 . | . . . Level 5 . | . . . High Security . | . . . Max Security . | . . . Squads Dispatched 2 | . 1 1 Investigation 2 | . 1 1 Extermination . | . . . Reinforcement . | . . . Assault . | . . . Garrison . | . . . Intercept . | . . . Searches Triggered . | . . . Construction Impeded . | . . . Haulers Reinforced . | . . . Active Scanning Responses . | . . . Cargo Convoy Interrupts . | . . . Stealth | -11 -10 -9 --------- Run | Jun Mat Mat Distress Signals 6 | . 1 5 Communications Jammed . | . . . Distress Signals . | . . . Times Spotted 71 | . 25 46 Peak Tracking Total 5 | . 4 5 Tactical Retreats 18 | . 5 13 Traps | -11 -10 -9 ------- Run | Jun Mat Mat Traps Triggered 5 | . 5 . Indirectly . | . . . Trap Hack Attempts . | . . . Triggered . | . . . Disarmed . | . . . Reprogrammed . | . . . Reused . | . . . Traps Extracted . | . . . Installed . | . . . Triggered . | . . . Machines | -11 -10 -9 ---------- Run | Jun Mat Mat Machines Disabled 2 | . 2 . Max in Single Turn 1 | . 1 . Machines Repaired . | . . . Machines Sabotaged . | . . . Overloaded Fab Kills . | . . . Hacking | -11 -10 -9 --------- Run | Jun Mat Mat Machines Accessed 13 | . 7 6 Terminals 7 | . 4 3 Fabricators . | . . . Repair Stations 2 | . 1 1 Recycling Units 2 | . 2 . Scanalyzers 2 | . . 2 Garrison Access . | . . . Total Hacks 46 | . 15 31 Successful 28 | . 9 19 Failed 18 | . 6 12 Catastrophic . | . . . Database Lockouts . | . . . Manual 2 | . 2 . Terminals 20 | . 10 10 Fabricators . | . . . Repair Stations 13 | . 2 11 Recycling Units 3 | . 3 . Scanalyzers 10 | . . 10 Garrison Access . | . . . Terminal Hacks 6 | . 4 2 Prototype ID Bank 1 | . 1 . Terminal Index 1 | . 1 . Hauler Manifests 3 | . 1 2 Registered Components 1 | . 1 . Fabricator Hacks . | . . . Repair Station Hacks 11 | . 2 9 Scan Component 6 | . 1 5 Repair 5 | . 1 4 Recycling Unit Hacks 3 | . 3 . Report Inventory 2 | . 2 . Retrieve Components 1 | . 1 . Scanalyzer 8 | . . 8 Insert Component 5 | . . 5 Analyze 3 | . . 3 Garrison Access Hacks . | . . . Unauthorized Hacks . | . . . Terminals . | . . . Fabricators . | . . . Repair Stations . | . . . Recycling Units . | . . . Scanalyzers . | . . . Garrison Access . | . . . Data Cores Recovered . | . . . Used . | . . . Hacking Detections 9 | . 4 5 Full Trace Events 1 | . . 1 Feedback Events . | . . . Feedback Blocked . | . . . Robot Schematics Acquired . | . . . Robots Built . | . . . Authchips . | . . . Time . | . . . Total Robot Build Rating . | . . . Part Schematics Acquired 3 | . . 3 Parts Built . | . . . Authchips . | . . . Time . | . . . Total Part Build Rating . | . . . Parts Repaired 5 | . 1 4 Time 142 | . 26 116 Parts Recycled . | . . . Recycled Matter . | . . . Retrieved Matter . | . . . Retrieved Components 10 | . 10 . Parts Scanalyzed 4 | . . 4 Part Schematics Acquired 3 | . . 3 Parts Damaged . | . . . Bothacking | -11 -10 -9 ------------ Run | Jun Mat Mat Used RIF Installer . | . . . Robots Hacked . | . . . Non-combat . | . . . Combat . | . . . Robot Hacks Applied . | . . . Relay Couplers Released . | . . . Fabnet Peak Effective % . | . . . Robots Rewired . | . . . Allies Hacked . | . . . Hacks Repelled . | . . . Allies | -11 -10 -9 -------- Run | Jun Mat Mat Total Allies . | . . . Largest Group . | . . . Highest-Rated Group . | . . . Highest-Rated Ally . | . . . Total Orders . | . . . Ally Attacks . | . . . Total Damage . | . . . Kills . | . . . Allies Corrupted . | . . . Allies Melted . | . . . Intel | -11 -10 -9 ------- Run | Jun Mat Mat Robot Analysis Total . | . . . Derelict Logs Recovered . | . . . Drone Launches . | . . . Drone Recoveries . | . . . Exploration | -11 -10 -9 ------------- Run | Jun Mat Mat Turns Passed 4462 | 83 2034 2345 Spaces Moved 2930 | 60 1318 1552 Core 20 | 10 . 10 Treads . | . . . Legs 195 | 50 145 . Wheels 1495 | . 1173 322 Hover 1220 | . . 1220 Flight . | . . . Fastest Speed 50 | 50 100 52 Average Speed 100 | 115 124 79 Slowest Speed 300 | 150 155 300 Overloaded Moves . | . . . Propulsion Burnouts . | . . . Robots Hopped . | . . . Cave-ins Triggered . | . . . Exploration Rate (%) 60 | 4 100 76 Regions Visited 2 Branch Regions . Pre-discovered Areas . | . . . Known Exits Taken . | . . . Unknown Exits Taken 2 | 1 1 . Scrap Searched . | . . . Spaces Dug . | . . . Terrain Destroyed 1 | . . 1 Melee . | . . . Projectile 1 | . . 1 AOE . | . . . Terrain Rammed . | . . . Walls Destroyed . | . . . Machines Disabled . | . . . Actions | -11 -10 -9 --------- Run | Jun Mat Mat Total 4220 | 71 1619 2530 Wait 876 | . 151 725 Move 2928 | 59 1317 1552 Hop . | . . . Pick Up 80 | 6 49 25 Fast Attach 17 | 6 3 8 Attach 23 | . 4 19 Detach 9 | . . 9 Swap 38 | . 16 22 Drop 67 | . 28 39 Fire 176 | . 51 125 Melee . | . . . Ram 6 | . . 6 Kick . | . . . Crush . | . . . Escape Stasis . | . . . Rewire . | . . . Trap . | . . . Miscellaneous . | . . . Route ------- -11/Junkyard -10/Materials (discovered 5 exits: *Mat x3 / [*Min x2]) -9/Materials (discovered 3 exits: [*Mat x2] / [*Min]) History --------- Turn | Location | Event 8 | -11/Junkyard | Discovered new exit (range 14) 84 | -11/Junkyard | Entered Materials 254 | -10/Materials | Discovered new exit (range 13) 330 | -10/Materials | Build established: Mutant 771 | -10/Materials | Discovered new exit (range 8) 1229 | -10/Materials | Discovered new exit (range 15) 1494 | -10/Materials | Discovered new exit (range 6) 2025 | -10/Materials | Discovered new exit (range 15) 2098 | -10/Materials | Repaired ECM Suite 2118 | -10/Materials | Entered another Materials area 2118 | -9/Materials | Evolved 2 slots: Propulsion x1, Utility x1 2497 | -9/Materials | Lost 4 parts (2n1u1w) 3073 | -9/Materials | Build established: Scavenger-Mutant 3108 | -9/Materials | Discovered new exit (range 9) 3138 | -9/Materials | Repaired Lgt. Assault Rifle 3386 | -9/Materials | Core integrity fell below 50% 3469 | -9/Materials | Repaired Weight Redist. System 3505 | -9/Materials | Repaired Imp. Hover Unit 3533 | -9/Materials | Repaired Lgt. Assault Rifle 3697 | -9/Materials | Discovered new exit (range 7) 4111 | -9/Materials | Discovered new exit (range 15) 4429 | -9/Materials | Core integrity fell below 20% 4463 | -9/Materials | Destroyed by Y-45 Defender with Beam Rifle Last Messages --------------- >>Scanalyze Scanning: Med. Storage Unit... Schematic downloaded. 04323_ K-01 Serf cleans the Fusion Modulator. 04341_ Connecting with Scanalyzer... >>Insert(Transport Network Coupler) Scanning Transport Network Coupler... Ready to analyze. 04341_ ALERT: Suspicious activity at Scanalyzer M001. Dispatching Investigation squad. 04344_ K-01 Serf cleans the Electrolysis Chamber. 04363_ Extracted 1 energy. 04395_ Extracted 2 energy. 04396_ Extracted 1 energy. 04413_ Lgt. Nuclear Core destroyed. 04413_ Imp. Hover Unit destroyed. 04416_ Hover Unit destroyed. 04454_ Lgt. Assault Rifle destroyed. 04456_ Critical hit (Burn: +37). 04457_ Lgt. Nuclear Core destroyed. Map ----- +----------------------------------------------------+ | """"""" ### #?????# # #??????????????? | | """"""" #?# #?????# # """ """ #??????????????? | | """"""" #?# #?????# # """ """ #??????????????? | | ###########+####### # """ """ #??????????????? | | #???# * # # #??????????????? | | ##### || + / #??????????????? | | + ||] """ # # #??????????????? | | ##### ||] """ "" # ###########??????????????? | | ????# """ S"" # ! ###########?????????? | | ???## "" # !![ ## #?????????? | | ???###+############ =!]! ## """ #?????????? | | ?????# #????#?????# ##[ ## """ #?????????? | | ?#??## #???????# ##u ## """ #?????##??? | | ?????# #???????#! !# # #??? #??? | | ?????# #???#???##!!!!## # ## #??? | | ?????# ####?????####### + / #??? | | ?????# #?#???##????# g # !! ## #??? | | ######### ##??????????# # ! #?? #??? | | = ## #???????????## t#####+#####??? ###??? | | ## #??????#?????# Y# ????????????? | | !! ## #????????????# + """ ???????????? | | ##!#???????#????# # """ #??????????? | | ##!#????????????# # """ +??????????? | | ##!#???????????## b # ?#??????????? | | ##!#????????????# # ""?????????????? | | ## #???????? ???# @ # ???????????????? | | ##+######!#????????????# # ???????????????? | | #####!#????????????# # ???????????????? | | *!#??#??"??????# ####????????????????? | | #######???????"????+ #???????????????????? | | ## ##??????????????????# #???????????????????? | | ##+#######???????????? # #???????????????????? | | #?????????????# #???????????????????? | | #?????????????# ???????????????????? | | #?????????????# ???????????????????? | | #?????????????# ???????????????????? | | ##########????????#????# ???????????????????? | | ##??#??????????????????# ???????????????????? | | #??#????#??????????????? ??????????????????? | | #??????????????????????? ??????????????????? | | ##?#???????????????????? ???????????????????? | | #??#???????????#???????????????????????????????? | | #########??????????????????????????????????????? | | #??????????????????????????????????????? | | #???#??????????????????????????????????? | | #??????????????????????????????????????? | | #??????????????????????????????????????? | | #??#???????????????????????????????????? | | #??#???????????????????????????????????? | | =! !#??????????????????????????????????????? | +----------------------------------------------------+ Best States ------------- Heat Dissipation 28 Energy Generation 14 Energy Capacity 250 Matter Stores 300 Matter Capacity 300 Sight Range 18 Terrain Scan Range 14 Terrain Scan Density 10 ECM Strength 1 Additional Mass Support 6 Evasion (%) 55 Item Schematics ----------------- Imp. Hover Unit | -9/Materials | Scanalyzed ECM Suite | -9/Materials | Scanalyzed Med. Storage Unit | -9/Materials | Scanalyzed Robot Schematics ------------------ None Fabricated ------------ Nothing Alien Tech Used ----------------- None Achievements -------------- None Challenges ------------ None Game ------ Seed WeaponNuclearPurifier Manual? 0 Play Time 02:00:24 Cumulative 43.5 hours Start 2023.03.09 @ 17:56:36 End 2023.03.09 @ 20:38:10 Sessions 1 Manual Loads 0 Difficulty Rogue Special Mode None Game No. 14 Rogue 6 Adventurer 2 Explorer 6 Win Type - Total 0 Types 0/0/0/0/0/0/0/0/0 Lore% 20 Gallery% 28 Achievement% 26 Wizard Run 0 Options --------- ASCII 0 Keyboard 1 Movement Numpad Keybinds 0 Fullscreen 2 Font 18/Smallcaps Map View 76x50 Tactical HUD 1 Map Filters NONE Filters NONE Steam 1 RUN: 7f915c57-e984-4122-b1da-30a8da3dadcc